bitfinex-derivatives/quotes_SOLF0:USTF0_20260213
["timestamp","ask_amount","ask_price","bid_price","bid_amount"]
[1770959716968,1.94112072,78.279,78.243,3.87022862]
[1770959718967,1.94112072,78.279,78.245,3.87022862]
[1770959720662,159.7,78.303,78.228,3.87022862]
[1770959720663,3.58499395,78.26,78.228,3.87022862]
[1770959720860,2.02002925,78.269,78.228,3.87022862]
[1770959721068,2.02002925,78.269,78.231,3.87022862]
[1770959722167,2.02307807,78.249,78.213,3.87022862]
[1770959722862,1.9956362,78.239,78.2,3.58499395]
[1770959723070,3.58499395,78.23,78.199,15.38902862]
[1770959723267,1.9956362,78.239,78.187,3.87022862]
[1770959723469,5.58063015,78.23,78.187,3.87022862]
[1770959723861,1.9956362,78.229,78.187,3.87022862]
[1770959724260,3.58499395,78.21,78.175,3.87022862]
[1770959724768,1.9956362,78.219,78.175,3.87022862]
[1770959724961,3.58499395,78.23,78.19,3.58499395]
[1770959725272,3.58499395,78.23,78.191,3.87022862]
[1770959725466,3.58499395,78.24,78.192,3.87022862]
[1770959725670,3.58499395,78.23,78.192,3.87022862]
[1770959726767,3.58499395,78.23,78.193,11.5197]
[1770959727180,3.58499395,78.22,78.192,3.87022862]
[1770959727472,11.69106945,78.249,78.143,299.11823176]
[1770959727473,1.98930353,78.209,78.169,3.87022862]
[1770959727770,3.58499395,78.19,78.157,3.87022862]
[1770959729060,3.58499395,78.21,78.161,3.87022862]
[1770959729267,3.58499395,78.2,78.161,3.87022862]
[1770959729468,3.58499395,78.19,78.161,3.87022862]
[1770959729667,3.58499395,78.18,78.149,3.87022862]
[1770959729972,3.58499395,78.19,78.153,3.87022862]
[1770959730465,3.58499395,78.21,78.17,7.78155068]
[1770959731176,3.58499395,78.2,78.17,4.19655673]
[1770959732474,3.58499395,78.19,78.161,4.19655673]
[1770959732670,3.58499395,78.18,78.15,4.19655673]
[1770959733463,3.58499395,78.18,78.14,3.58499395]
[1770959733464,5.88575431,78.18,78.142,11.5272]
[1770959735468,5.88575431,78.18,78.143,3.87778748]
[1770959737071,2.25553045,78.169,78.118,3.87778748]
[1770959737272,2.25553045,78.169,78.13,3.58499395]
[1770959737474,2.25553045,78.159,78.12,3.58499395]
[1770959737672,2.25553045,78.159,78.12,7.46278143]
[1770959737878,2.25553045,78.159,78.121,3.87778748]
[1770959738669,3.58499395,78.16,78.123,3.87778748]
[1770959738876,3.58499395,78.17,78.131,3.87778748]
[1770959739484,11.5213,78.183,78.131,3.87778748]
[1770959739673,3.58499395,78.18,78.141,3.87778748]
[1770959740182,102.08,78.191,78.123,3.87778748]
[1770959740183,3.58499395,78.16,78.123,3.87778748]
[1770959740677,3.58499395,78.17,78.13,3.58499395]
[1770959741179,3.58499395,78.17,78.131,3.87778748]
[1770959741381,3.58499395,78.18,78.141,3.87778748]
[1770959741570,3.58499395,78.18,78.112,4.93356899]
[1770959741571,3.58499395,78.19,78.151,3.87778748]
[1770959741775,3.58499395,78.18,78.151,3.87778748]
[1770959742982,3.58499395,78.18,78.14,3.58499395]
[1770959743280,2.67670206,78.189,78.15,3.58499395]
[1770959743474,3.58499395,78.18,78.15,3.58499395]
[1770959743674,3.58499395,78.18,78.141,3.87778748]
[1770959743876,3.58499395,78.18,78.15,3.58499395]
[1770959744181,2.67670206,78.199,78.151,3.87778748]
[1770959744376,3.58499395,78.19,78.151,3.87778748]
[1770959744784,3.58499395,78.19,78.152,3.87778748]
[1770959745187,2.67670206,78.199,78.161,3.87778748]
[1770959750080,3.58499395,78.2,78.165,3.87778748]
[1770959753281,6.25272407,78.2,78.165,3.87778748]
[1770959753478,3.58499395,78.19,78.153,3.87778748]
[1770959754991,3.58499395,78.19,78.154,11.5254]
[1770959755292,3.58499395,78.19,78.154,15.40318748]
[1770959755490,3.58499395,78.19,78.154,3.87778748]
[1770959756780,3.58499395,78.19,78.15,3.58499395]
[1770959756781,2.67668193,78.179,78.142,3.87778748]
[1770959756985,3.58499395,78.18,78.142,3.87778748]
[1770959758792,3.58499395,78.18,78.151,3.87778748]
[1770959759091,2.67668193,78.189,78.151,3.87778748]
[1770959760290,3.58499395,78.19,78.153,3.87778748]
[1770959760493,3.58499395,78.2,78.161,3.9455346]
[1770959761198,3.58499395,78.21,78.161,3.9455346]
[1770959761901,3.58499395,78.22,78.181,3.9455346]
[1770959762490,3.58499395,78.22,78.183,3.9455346]
[1770959763601,6.23313973,78.22,78.183,3.9455346]
[1770959764600,2.64814578,78.219,78.183,3.9455346]
[1770959765997,2.64814578,78.219,78.184,15.4664346]
[1770959766196,2.64814578,78.219,78.185,3.9455346]
[1770959766595,3.58499395,78.22,78.187,3.9455346]
[1770959768804,3.58499395,78.22,78.19,3.9455346]
[1770959773299,6.27747083,78.22,78.181,11.5215]
[1770959773906,6.27747083,78.22,78.184,15.4665346]
[1770959774106,6.27747083,78.22,78.184,3.9455346]
[1770959774800,2.69314619,78.219,78.184,3.9455346]
[1770959777203,2.69314619,78.219,78.185,3.9455346]
[1770959778805,2.69314619,78.219,78.186,11.5207]
[1770959779010,2.69314619,78.219,78.187,3.9455346]
[1770959781809,2.69314619,78.219,78.18,3.59024789]
[1770959781810,11.5162,78.217,78.18,3.59024789]
[1770959782005,3.59024789,78.21,78.176,3.9455346]
[1770959783315,3.59024789,78.22,78.181,3.9455346]
[1770959784116,11.5159,78.219,78.181,15.4668346]
[1770959784321,11.5159,78.219,78.182,3.9455346]
[1770959787913,2.74472996,78.226,78.187,3.9455346]
[1770959788117,2.78279323,78.219,78.187,3.9455346]
[1770959790820,2.78279323,78.219,78.187,15.4661346]
[1770959796027,2.78279323,78.219,78.188,4.01333387]
[1770959799924,3.59024789,78.23,78.191,4.01333387]
[1770959800123,11.72078751,78.246,78.148,102.08]
[1770959800124,6.75258861,78.26,78.221,4.01333387]
[1770959800331,3.16234072,78.249,78.211,4.01333387]
[1770959802634,155.72,78.268,78.208,11.5175]
[1770959802635,3.16665954,78.239,78.208,11.5175]
[1770959803737,3.28737887,78.249,78.211,4.01333387]
[1770959804832,3.28737887,78.249,78.213,11.5167]
[1770959805221,3.28737887,78.249,78.211,4.01333387]
[1770959805825,3.28737887,78.249,78.213,4.01333387]
[1770959806030,3.59024789,78.26,78.221,4.01333387]
[1770959806229,3.2872964,78.269,78.231,4.01333387]
[1770959807534,3.2872964,78.269,78.233,4.01333387]
[1770959808126,6.88060815,78.28,78.241,4.01333387]
[1770959808524,272.6980158,78.281,78.241,4.01333387]
[1770959808937,3.59024789,78.28,78.241,4.01333387]
[1770959809131,6.98051803,78.28,78.241,4.01333387]
[1770959810028,3.39027014,78.279,78.241,4.01333387]
[1770959811438,3.39027014,78.279,78.242,11.5124]
[1770959812440,3.39027014,78.279,78.242,15.52573387]
[1770959812639,3.39027014,78.279,78.243,4.01333387]
[1770959813735,163.97024789,78.29,78.247,4.01333387]
[1770959813937,163.97024789,78.29,78.251,4.01333387]
[1770959814637,3.39088668,78.293,78.256,4.01333387]
[1770959814836,160.66,78.297,78.261,4.01333387]
[1770959815339,3.44714733,78.296,78.257,11.5103]
[1770959815539,3.59024789,78.29,78.257,11.5103]
[1770959817741,3.59024789,78.29,78.26,4.01333387]
[1770959818040,3.45720192,78.307,78.261,4.01333387]
[1770959818240,3.59024789,78.3,78.261,4.01333387]
[1770959819440,6.68332613,78.3,78.261,4.01333387]
[1770959819640,3.09307824,78.299,78.261,4.01333387]
[1770959819843,3.09307824,78.299,78.262,11.5095]
[1770959819844,3.59024789,78.29,78.262,11.5095]
[1770959820044,3.09307824,78.299,78.262,11.5095]
[1770959820633,3.59024789,78.29,78.254,11.5106]
[1770959820838,3.08848183,78.289,78.254,11.5106]
[1770959821640,164.16,78.299,78.26,4.20404321]
[1770959821855,2.97964943,78.298,78.26,4.20404321]
[1770959822038,2.97964943,78.298,78.261,4.20404321]
[1770959823038,3.59024789,78.3,78.261,4.20404321]
[1770959823350,164.84,78.308,78.261,4.20404321]
[1770959824045,164.84,78.308,78.271,4.20404321]
[1770959825843,267.44763775,78.326,78.27,3.59024789]
[1770959825844,3.59024789,78.32,78.272,4.20404321]
[1770959826058,3.59024789,78.32,78.281,4.20404321]
[1770959826738,168.58,78.321,78.247,102.0]
[1770959826739,3.59024789,78.3,78.27,4.20404321]
[1770959826945,267.44763775,78.326,78.259,4.20404321]
[1770959826946,3.59024789,78.29,78.259,4.20404321]
[1770959827651,169.32,78.306,78.261,4.20404321]
[1770959828354,3.59024789,78.29,78.261,4.20404321]
[1770959830448,2.47694475,78.289,78.252,11.511]
[1770959830654,2.47694475,78.289,78.256,11.5104]
[1770959830855,2.47694475,78.289,78.256,15.71444321]
[1770959831454,3.59024789,78.29,78.26,4.20404321]
[1770959835459,2.50569193,78.289,78.25,3.59024789]
[1770959835659,2.50569193,78.289,78.249,4.20404321]
[1770959835660,3.59024789,78.28,78.249,4.20404321]
[1770959836855,3.58428905,78.28,78.249,4.20404321]
[1770959838159,2.50569193,78.289,78.251,4.20404321]
[1770959839463,170.76,78.294,78.253,4.20404321]
[1770959839766,170.76,78.294,78.261,4.20404321]
[1770959842572,6.10601898,78.3,78.261,4.20404321]
[1770959842765,2.52172993,78.299,78.261,4.20404321]
[1770959844468,3.58428905,78.3,78.266,4.20404321]
[1770959844673,2.48789655,78.309,78.266,4.20404321]
[1770959844874,2.48789655,78.309,78.27,3.58428905]
[1770959845063,2.48789655,78.309,78.271,4.20404321]
[1770959846565,3.58428905,78.3,78.271,4.20404321]
[1770959847170,2.48789655,78.309,78.271,4.20404321]
[1770959847371,3.58428905,78.3,78.271,4.20404321]
[1770959848774,2.48789655,78.309,78.271,4.20404321]
[1770959850977,2.48789655,78.309,78.277,4.15754647]
[1770959853578,9.41364961,78.317,78.282,11.5065]
[1770959853778,6.05545154,78.32,78.282,11.5065]
[1770959853779,9.41364961,78.316,78.282,11.5065]
[1770959853981,2.47390502,78.319,78.282,11.5065]
[1770959854168,11.88846989,78.318,78.282,11.5065]
[1770959854368,9.41456487,78.317,78.282,11.5065]
[1770959854573,9.41456487,78.316,78.282,11.5065]
[1770959854773,2.47390502,78.318,78.282,11.5065]
[1770959854975,11.74581747,78.317,78.282,11.5065]
[1770959855174,3.58428905,78.32,78.287,3.99445375]
[1770959855379,9.41316337,78.319,78.287,3.99445375]
[1770959855579,9.41316337,78.318,78.287,3.99445375]
[1770959855783,9.41316337,78.317,78.287,3.99445375]
[1770959855981,3.58428905,78.32,78.287,3.99445375]
[1770959856183,9.41419558,78.319,78.287,3.99445375]
[1770959856382,9.41419558,78.318,78.287,3.99445375]
[1770959856686,9.41419558,78.317,78.287,3.99445375]
[1770959856874,2.33159185,78.319,78.287,3.99445375]
[1770959857070,9.41437376,78.318,78.287,3.99445375]
[1770959857376,9.41437376,78.317,78.287,3.99445375]
[1770959857577,2.33159185,78.319,78.287,3.99445375]
[1770959857775,9.41483228,78.318,78.287,3.99445375]
[1770959858080,9.41483228,78.317,78.287,3.99445375]
[1770959858281,2.33159185,78.319,78.287,3.99445375]
[1770959858479,9.41553082,78.318,78.287,3.99445375]
[1770959858676,2.33159185,78.319,78.287,3.99445375]
[1770959861787,3.58428905,78.31,78.287,3.99445375]
[1770959863175,2.33159185,78.319,78.287,3.99445375]
[1770959865188,3.58428905,78.31,78.287,3.99445375]
[1770959867085,2.33159185,78.319,78.287,3.99445375]
[1770959867390,3.58428905,78.32,78.289,3.99445375]
[1770959868086,2.32624055,78.319,78.289,3.99445375]
[1770959870779,3.58428905,78.31,78.286,3.99445375]
[1770959876683,5.94248007,78.3,78.265,3.99445375]
[1770959877093,3.58428905,78.3,78.265,3.99445375]
[1770959877688,5.94248007,78.31,78.277,3.99445375]
[1770959878396,5.94248007,78.31,78.27,3.58428905]
[1770959878397,3.58428905,78.31,78.28,3.99445375]
[1770959879196,3.58428905,78.33,78.291,3.99445375]
[1770959880188,3.58428905,78.32,78.291,3.99445375]
[1770959880394,3.58428905,78.31,78.281,3.99445375]
[1770959880794,2.36344953,78.319,78.281,3.99445375]
[1770959882685,2.36344953,78.319,78.283,11.5064]
[1770959883102,9.43503036,78.318,78.283,11.5064]
[1770959883293,2.36344953,78.319,78.283,11.5064]
[1770959883494,12.15697151,78.318,78.283,11.5064]
[1770959883702,2.72524348,78.318,78.285,11.5061]
[1770959883902,2.72524348,78.318,78.285,15.33899273]
[1770959884103,9.43450363,78.317,78.285,15.33899273]
[1770959884303,2.72524348,78.318,78.285,15.33899273]
[1770959884502,9.43454188,78.317,78.286,3.83289273]
[1770959884704,2.72524348,78.318,78.286,3.83289273]
[1770959884903,9.43453356,78.317,78.288,3.83289273]
[1770959885104,2.72524348,78.318,78.288,3.83289273]
[1770959885299,9.43537905,78.317,78.288,3.83289273]
[1770959885505,197.88,78.324,78.288,3.83289273]
[1770959885810,9.43556025,78.323,78.288,3.83289273]
[1770959886110,9.43556025,78.322,78.288,3.83289273]
[1770959886299,9.43556025,78.321,78.288,3.83289273]
[1770959886498,9.43556025,78.32,78.288,3.83289273]
[1770959886698,197.88,78.324,78.288,3.83289273]
[1770959886906,9.4403918,78.323,78.288,3.83289273]
[1770959887106,3.58428905,78.33,78.28,3.58428905]
[1770959887107,3.58428905,78.33,78.301,3.83289273]
[1770959888303,9.44051483,78.329,78.301,3.83289273]
[1770959888506,9.44051483,78.328,78.291,3.83289273]
[1770959888808,9.44051483,78.327,78.292,3.83289273]
[1770959889107,3.58428905,78.33,78.292,3.83289273]
[1770959889314,9.43817586,78.329,78.292,3.83289273]
[1770959889503,9.43817586,78.328,78.292,3.83289273]
[1770959889808,9.43819442,78.338,78.303,3.83289273]
[1770959890109,9.43819442,78.338,78.261,23.0192]
[1770959890110,3.58428905,78.33,78.291,3.83289273]
[1770959891710,3.58428905,78.33,78.294,11.5047]
[1770959895214,3.58428905,78.33,78.298,15.33709273]
[1770959897705,3.58428905,78.33,78.299,3.83289273]
[1770959897902,2.73403702,78.336,78.3,3.58428905]
[1770959898109,200.66,78.35,78.306,3.83289273]
[1770959898110,2.82320584,78.348,78.306,3.83289273]
[1770959898402,9.4174098,78.346,78.311,3.83289273]
[1770959898716,3.58428905,78.35,78.311,3.83289273]
[1770959898910,9.41877415,78.349,78.311,3.83289273]
[1770959899107,9.41877415,78.348,78.314,3.83289273]
[1770959899313,9.41640414,78.357,78.321,3.83289273]
[1770959899508,14.31870584,78.358,78.321,3.83289273]
[1770959899715,2.82798503,78.369,78.321,3.83289273]
[1770959899914,2.82798503,78.359,78.324,3.83289273]
[1770959901718,2.82798503,78.359,78.325,11.5003]
[1770959902118,2.74124204,78.349,78.313,3.83289273]
[1770959902312,3.57795003,78.34,78.313,3.83289273]
[1770959902620,2.74124204,78.349,78.313,3.83289273]
[1770959902920,3.57795003,78.34,78.313,3.83289273]
[1770959903726,3.57795003,78.34,78.313,15.33499273]
[1770959904407,2.74124204,78.349,78.313,15.33499273]
[1770959904606,3.57795003,78.34,78.313,15.33499273]
[1770959905622,2.66170659,78.329,78.294,3.83289273]
[1770959906921,2.66170659,78.329,78.294,15.33769273]
[1770959909709,3.57795003,78.32,78.295,3.83289273]
[1770959909917,2.66170659,78.329,78.295,3.83289273]
[1770959910920,3.57795003,78.33,78.295,3.83289273]
[1770959915631,6.25520919,78.33,78.295,3.83289273]
[1770959917423,15.53693757,78.362,78.269,196.64562565]
[1770959917424,2.6763984,78.341,78.303,4.13018326]
[1770959917625,12.98886835,78.34,78.303,4.13018326]
[1770959917935,12.08731672,78.339,78.303,4.13018326]
[1770959918127,3.57795003,78.34,78.303,4.13018326]
[1770959918128,12.08731672,78.338,78.303,4.13018326]
[1770959918428,2.6763984,78.336,78.303,4.13018326]
[1770959918624,9.41091832,78.335,78.303,4.13018326]
[1770959918825,9.41091832,78.334,78.304,11.5033]
[1770959919019,9.41091832,78.335,78.304,11.5033]
[1770959919216,9.41091832,78.334,78.304,11.5033]
[1770959919523,2.6763984,78.336,78.304,11.5033]
[1770959919722,3.57795003,78.34,78.281,101.92]
[1770959919723,2.68573807,78.329,78.296,11.5044]
[1770959919922,2.68573807,78.327,78.296,11.5044]
[1770959920628,2.68573807,78.327,78.292,4.13018326]
[1770959920818,6.29625102,78.32,78.286,11.506]
[1770959921327,6.29625102,78.32,78.286,15.63618326]
[1770959922034,2.71830099,78.319,78.286,15.63618326]
[1770959922330,2.71830099,78.319,78.286,4.13018326]
[1770959922929,2.71830099,78.319,78.287,11.5058]
[1770959923325,2.71830099,78.319,78.288,4.13018326]
[1770959925426,9.39290022,78.322,78.291,4.13018326]
[1770959925625,2.70600681,78.329,78.291,4.13018326]
[1770959925826,2.70600681,78.327,78.291,4.13018326]
[1770959926136,2.70600681,78.325,78.293,11.505]
[1770959926426,2.70600681,78.335,78.294,4.13018326]
[1770959926632,3.57795003,78.33,78.294,4.13018326]
[1770959926832,9.39228582,78.329,78.294,4.13018326]
[1770959927035,9.39228582,78.328,78.294,4.13018326]
[1770959927335,9.39228582,78.327,78.294,4.13018326]
[1770959927528,3.57795003,78.33,78.294,4.13018326]
[1770959927727,9.39276263,78.329,78.297,4.13018326]
[1770959927929,9.39276263,78.328,78.297,4.13018326]
[1770959928130,9.39276263,78.327,78.297,4.13018326]
[1770959928325,9.39276263,78.326,78.297,4.13018326]
[1770959928536,3.57795003,78.33,78.297,4.13018326]
[1770959928731,9.39325947,78.329,78.297,4.13018326]
[1770959929032,9.39325947,78.328,78.297,4.13018326]
[1770959929231,9.39325947,78.327,78.297,4.13018326]
[1770959929431,9.39325947,78.326,78.297,4.13018326]
[1770959929631,3.57795003,78.33,78.297,4.13018326]
[1770959929932,9.39370011,78.329,78.297,4.13018326]
[1770959930232,9.39370011,78.328,78.297,4.13018326]
[1770959930430,9.39370011,78.327,78.297,4.13018326]
[1770959930632,9.39370011,78.326,78.297,4.13018326]
[1770959930825,3.57795003,78.33,78.297,4.13018326]
[1770959931026,9.3941396,78.329,78.297,4.13018326]
[1770959931227,9.3941396,78.328,78.297,4.13018326]
[1770959931427,9.3941396,78.327,78.297,4.13018326]
[1770959931630,9.3941396,78.326,78.297,4.13018326]
[1770959931933,2.70600681,78.333,78.299,4.13018326]
[1770959932136,9.39465913,78.332,78.299,4.13018326]
[1770959932335,9.39465913,78.331,78.299,4.13018326]
[1770959932533,9.39465913,78.33,78.299,4.13018326]
[1770959932736,9.39465913,78.329,78.299,4.13018326]
[1770959932929,9.39465913,78.328,78.299,4.13018326]
[1770959933129,9.39465913,78.327,78.299,4.13018326]
[1770959933330,9.39465913,78.326,78.299,4.13018326]
[1770959933529,2.70600681,78.333,78.299,4.13018326]
[1770959933738,9.39409585,78.332,78.299,4.13018326]
[1770959933939,9.39409585,78.331,78.299,4.13018326]
[1770959934144,2.84209235,78.329,78.298,11.5042]
[1770959934439,2.84209235,78.327,78.29,7.70813329]
[1770959934635,2.84209235,78.325,78.29,7.70813329]
[1770959934832,3.57795003,78.32,78.29,4.13018326]
[1770959935033,12.23370089,78.319,78.29,4.13018326]
[1770959935239,2.83942665,78.317,78.287,11.5058]
[1770959935435,9.39427424,78.316,78.287,11.5058]
[1770959935741,2.83942665,78.317,78.287,11.5058]
[1770959936938,2.83942665,78.317,78.285,11.5062]
[1770959937634,2.83942665,78.317,78.281,4.13018326]
[1770959938135,2.83942665,78.317,78.29,3.57795003]
[1770959939132,2.83942665,78.317,78.285,4.13018326]
[1770959940138,2.79983824,78.326,78.29,7.70813329]
[1770959940338,12.18979277,78.325,78.29,4.13018326]
[1770959940535,9.38995453,78.324,78.29,4.13018326]
[1770959940741,9.38995453,78.323,78.29,4.13018326]
[1770959940944,9.38995453,78.322,78.29,4.13018326]
[1770959941137,2.79983824,78.325,78.292,4.02228484]
[1770959941336,9.39056748,78.324,78.292,4.02228484]
[1770959941541,9.39056748,78.323,78.292,4.02228484]
[1770959941742,2.79983824,78.325,78.292,4.02228484]
[1770959941933,9.38606126,78.324,78.292,4.02228484]
[1770959942135,9.38606126,78.323,78.292,4.02228484]
[1770959942336,2.79983824,78.325,78.292,4.02228484]
[1770959942534,9.38452606,78.324,78.292,4.02228484]
[1770959942736,2.80530196,78.322,78.293,11.5049]
[1770959945244,9.38693126,78.321,78.293,11.5049]
[1770959945439,2.80530196,78.322,78.293,11.5049]
[1770959945642,9.38707981,78.321,78.293,11.5049]
[1770959945839,2.80530196,78.322,78.293,11.5049]
[1770959946041,9.38704568,78.321,78.293,11.5049]
[1770959946242,9.3921177,78.32,78.293,11.5049]
[1770959946440,2.82130223,78.318,78.282,4.02228484]
[1770959946646,2.82130223,78.316,78.282,4.02228484]
[1770959946842,12.21327845,78.315,78.282,4.02228484]
[1770959947042,9.3921177,78.314,78.282,4.02228484]
[1770959947239,9.3921177,78.313,78.282,4.02228484]
[1770959947549,2.82116075,78.315,78.282,4.02228484]
[1770959947748,9.39435051,78.314,78.284,4.02228484]
[1770959947947,9.39435051,78.313,78.284,4.02228484]
[1770959948246,9.39435051,78.312,78.284,4.02228484]
[1770959948449,2.82116075,78.315,78.284,4.02228484]
[1770959948749,9.39560817,78.314,78.287,11.5058]
[1770959948949,9.39560817,78.313,78.287,11.5058]
[1770959949151,9.39560817,78.312,78.287,11.5058]
[1770959949350,9.39560817,78.311,78.287,11.5058]
[1770959949549,2.82116075,78.315,78.287,11.5058]
[1770959949752,9.39737451,78.314,78.287,11.5058]
[1770959949945,2.82116075,78.315,78.287,11.5058]
[1770959950450,9.40001005,78.314,78.287,11.5058]
[1770959950652,9.40001005,78.313,78.287,11.5058]
[1770959950850,9.40001005,78.312,78.287,11.5058]
[1770959951051,9.40001005,78.311,78.287,11.5058]
[1770959951242,2.7698843,78.325,78.29,11.5053]
[1770959951444,2.7698843,78.323,78.29,11.5053]
[1770959951647,2.7698843,78.321,78.29,11.5053]
[1770959951847,9.40052975,78.32,78.29,11.5053]
[1770959952041,9.40052975,78.319,78.29,11.5053]
[1770959952248,9.40052975,78.318,78.288,4.02228484]
[1770959952543,9.40052975,78.317,78.288,4.02228484]
[1770959952749,9.40052975,78.316,78.288,4.02228484]
[1770959952944,9.40052975,78.315,78.288,4.02228484]
[1770959953146,2.85027457,78.319,78.288,4.02228484]
[1770959953347,2.85027457,78.317,78.288,4.02228484]
[1770959953547,9.39562675,78.316,78.288,4.02228484]
[1770959953748,9.4171889,78.315,78.288,4.02228484]
[1770959953951,2.85027457,78.317,78.288,4.02228484]
[1770959954153,2.85027457,78.315,78.282,11.5065]
[1770959954451,9.4171889,78.314,78.282,15.52878484]
[1770959954649,2.85027457,78.315,78.284,11.5063]
[1770959954650,9.4171889,78.313,78.284,11.5063]
[1770959954854,2.81307094,78.309,78.264,4.02228484]
[1770959955053,3.57795003,78.29,78.254,4.02228484]
[1770959955355,2.81307094,78.289,78.254,4.02228484]
[1770959955946,2.81307094,78.289,78.216,23.0325]
[1770959955947,6.39102097,78.27,78.233,4.02228484]
[1770959956155,2.81307094,78.27,78.233,4.02228484]
[1770959956456,2.81307094,78.27,78.24,3.57795003]
[1770959956757,9.39493213,78.278,78.241,4.02228484]
[1770959956954,9.39493213,78.277,78.241,4.02228484]
[1770959957152,2.81307094,78.283,78.241,4.02228484]
[1770959957352,3.57795003,78.28,78.241,4.02228484]
[1770959957758,12.97295365,78.28,78.241,4.02228484]
[1770959957958,3.57795003,78.28,78.241,4.02228484]
[1770959958862,3.58460916,78.28,78.244,11.5121]
[1770959959361,3.58460916,78.28,78.244,15.53438484]
[1770959959559,3.22510086,78.279,78.244,11.5121]
[1770959959756,3.22510086,78.279,78.233,4.02228484]
[1770959959955,3.58460916,78.27,78.233,4.02228484]
[1770959960258,3.22510086,78.279,78.233,4.02228484]
[1770959960461,3.58460916,78.27,78.233,4.02228484]
[1770959960648,3.22510086,78.269,78.233,4.02228484]
[1770959961248,3.58460916,78.26,78.223,4.02228484]
[1770959961759,3.22510086,78.269,78.23,7.606894]
[1770959961959,3.22510086,78.269,78.231,4.02228484]
[1770959968181,3.15995197,78.283,78.241,4.02228484]
[1770959968459,9.39500362,78.295,78.195,23.0387]
[1770959968460,3.15995197,78.295,78.261,4.02228484]
[1770959972271,3.37527233,78.289,78.251,4.02915636]
[1770959972973,3.37527233,78.289,78.253,11.5108]
[1770959973271,6.92361239,78.3,78.261,4.02915636]
[1770959973776,6.92361239,78.3,78.262,4.02915636]
[1770959974168,3.33900323,78.3,78.265,4.09484476]
[1770959974474,6.92361239,78.3,78.265,4.09484476]
[1770959980774,6.92361239,78.3,78.266,11.509]
[1770959981176,3.36652408,78.299,78.266,11.509]
[1770959981480,3.58460916,78.29,78.265,4.09484476]
[1770959981980,3.58460916,78.29,78.259,11.51]
[1770959982779,3.35963288,78.289,78.259,11.51]
[1770959982979,3.35963288,78.289,78.254,4.09484476]
[1770959983574,3.35963288,78.289,78.255,11.5106]
[1770959984877,3.35963288,78.289,78.257,11.5102]
[1770959985080,3.35963288,78.289,78.258,4.09484476]
[1770959986092,6.95051308,78.3,78.261,4.09484476]
[1770959986576,3.36590392,78.299,78.261,4.09484476]
[1770959987787,3.36590392,78.299,78.263,15.60424476]
[1770959987985,3.36590392,78.299,78.264,4.09484476]
[1770959991300,9.43412855,78.306,78.264,4.09484476]
[1770959991494,3.42513238,78.309,78.264,4.09484476]
[1770959991694,3.58460916,78.3,78.264,4.09484476]
[1770959992297,3.42513238,78.299,78.267,11.5087]
[1770959992504,3.42513238,78.299,78.264,4.09484476]
[1770959992505,3.58460916,78.29,78.264,4.09484476]
[1770959992895,3.58460916,78.29,78.251,4.09484476]
[1770959993910,3.58460916,78.29,78.257,4.09484476]
[1770959999298,9.43412855,78.289,78.257,4.09484476]
[1770959999501,12.78421905,78.298,78.26,4.09484476]
[1770959999799,12.78421905,78.297,78.26,4.09484476]
[1770960000093,12.78421905,78.297,78.262,11.5095]
[1770960000094,9.47038547,78.296,78.262,11.5095]
[1770960000300,3.31383358,78.308,78.271,4.09484476]
[1770960000500,9.47038547,78.309,78.271,4.09484476]
[1770960000501,3.31383358,78.318,78.271,4.09484476]
[1770960000699,9.47347434,78.317,78.281,4.07316433]
[1770960000908,9.47347434,78.316,78.281,4.07316433]
[1770960001110,3.58460916,78.31,78.281,4.07316433]
[1770960001306,9.47347434,78.314,78.281,4.07316433]
[1770960001495,9.47347434,78.317,78.281,4.07316433]
[1770960001698,9.47347434,78.316,78.281,4.07316433]
[1770960001895,9.47347434,78.315,78.281,4.07316433]
[1770960002095,6.95027012,78.32,78.28,3.58460916]
[1770960002302,12.8391353,78.319,78.281,4.07316433]
[1770960002502,9.4663753,78.318,78.281,4.07316433]
[1770960002806,3.58460916,78.3,78.27,4.07316433]
[1770960003202,9.4663753,78.308,78.27,4.07316433]
[1770960003509,3.58460916,78.3,78.27,4.07316433]
[1770960005807,3.30124479,78.306,78.27,4.07316433]
[1770960007409,12.76762009,78.306,78.27,4.07316433]
[1770960008310,9.4663753,78.305,78.27,4.07316433]
[1770960008506,3.30124479,78.306,78.271,4.07316433]
[1770960008710,9.46496881,78.305,78.271,4.07316433]
[1770960008912,3.30124479,78.306,78.271,4.07316433]
[1770960009102,9.46494553,78.305,78.271,4.07316433]
[1770960009299,9.4678207,78.304,78.271,4.07316433]
[1770960009502,3.30124479,78.306,78.271,4.07316433]
[1770960009706,9.46408571,78.305,78.271,4.07316433]
[1770960010005,9.46408571,78.304,78.271,4.07316433]
[1770960010206,3.30124479,78.306,78.271,4.07316433]
[1770960010408,9.46881529,78.305,78.271,4.07316433]
[1770960010606,9.46881529,78.304,78.271,4.07316433]
[1770960010908,9.46881529,78.303,78.271,4.07316433]
[1770960011213,3.42674693,78.299,78.261,4.07316433]
[1770960011408,9.46833129,78.298,78.27,3.58460916]